fUST/lending_fUST_20250724
["ID","MTS","AMOUNT","RATE_DAILY","PERIOD"]
[374559383,1753353064738,-550.96,0.00023013,2]
[374559384,1753353064747,-1060.41,0.00023013,2]
[374559385,1753353064758,-2774.82,0.00023013,2]
[374559386,1753353064767,-460.0,0.00023013,2]
[374559387,1753353064777,-2045.17,0.00023013,2]
[374559388,1753353064787,-1086.16,0.00023013,2]
[374559389,1753353064797,-1266.48,0.00023013,2]
[374559390,1753353064807,-1080.21,0.00023013,2]
[374559391,1753353064817,-460.0,0.00023013,2]
[374559392,1753353064826,-460.0,0.00023013,2]
[374559393,1753353064835,-176.0,0.00023014,7]
[374559394,1753353064845,-521.64,0.00023034,4]
[374559395,1753353064854,-151.0,0.0002309,7]
[374559396,1753353064864,-151.0,0.0002309,7]
[374559397,1753353064874,-151.0,0.0002309,7]
[374559398,1753353064885,-521.64,0.00023134,3]
[374559399,1753353064895,-151.0,0.0002314,7]
[374559400,1753353064905,-151.0,0.0002314,7]
[374559401,1753353064914,-151.0,0.000232,7]
[374559402,1753353064924,-151.0,0.000232,7]
[374559403,1753353064934,-151.0,0.000232,7]
[374559404,1753353064944,-317.245903,0.000232,7]
[374559405,1753353064953,-317.245903,0.000232,7]
[374559406,1753353064963,-151.0,0.000232,7]
[374559407,1753353064972,-218.7,0.00023205,6]
[374559408,1753353064982,-1755.56944437,0.0002321,8]
[374559409,1753353064992,-500.0,0.00023213,2]
[374559410,1753353065001,-521.64,0.00023234,2]
[374559411,1753353065011,-658.728642,0.00023287,7]
[374559412,1753353065020,-460.0,0.00023287,2]
[374559413,1753353065030,-1883.5,0.00023287,2]
[374559414,1753353065039,-524.25,0.00023287,2]
[374559415,1753353065049,-1956.02,0.00023287,2]
[374559416,1753353065063,-460.0,0.00023287,2]
[374559417,1753353065073,-161.440942,0.00023287,2]
[374559418,1753353065082,-151.0,0.00023287,7]
[374559419,1753353065092,-464.02,0.00023287,2]
[374559420,1753353065103,-460.0,0.00023287,2]
[374559421,1753353065113,-212.09547247,0.00023287,2]
[374559422,1753353065123,-1300.47,0.00023287,2]
[374559423,1753353065135,-460.0,0.00023287,2]
[374559424,1753353065146,-75.34859441,0.00023287,2]
[374559425,1753353065346,-497.87,0.00019178,2]
[374559426,1753353065356,-460.0,0.00019178,2]
[374559427,1753353065366,-380.8851734,0.00019452,2]
[374559428,1753353065378,-116.9848266,0.00019452,2]
[374559429,1753353065388,-497.87,0.00019726,2]
[374559430,1753353065398,-448.30117395,0.00020105,2]
[374559431,1753353065407,-460.0,0.00021917,2]
[374559432,1753353065417,-460.0,0.00022191,2]
[374559433,1753353065427,-460.0,0.00022465,2]
[374559434,1753353065436,-460.0,0.00022739,2]
[374559435,1753353065447,-361.40140559,0.00023287,2]
[374559436,1753353065456,-460.0,0.00023287,2]
[374559437,1753353065466,-1185.16,0.00023287,2]
[374559438,1753353065475,-2933.9,0.00023287,2]
[374559439,1753353065485,-460.0,0.00023287,2]
[374559440,1753353065495,-810.12,0.00023287,2]
[374559441,1753353065504,-985.46,0.00023287,2]
[374559442,1753353065514,-460.0,0.00023287,2]
[374559443,1753353065523,-151.0,0.00023287,7]
[374559444,1753353065533,-496.18,0.00023287,2]
[374559445,1753353065543,-460.0,0.00023287,2]
[374559446,1753353065552,-739.46,0.00023287,2]
[374559447,1753353065561,-583.09,0.00023287,2]
[374559448,1753353065572,-460.0,0.00023287,2]
[374559449,1753353065581,-460.0,0.00023287,2]
[374559450,1753353065591,-460.0,0.00023287,2]
[374559451,1753353065601,-1634.08,0.00023287,2]
[374559452,1753353065610,-460.0,0.00023287,2]
[374559453,1753353065620,-460.0,0.00023287,2]
[374559454,1753353065631,-1390.29,0.00023287,2]
[374559455,1753353065641,-460.0,0.00023287,2]
[374559456,1753353065650,-462.44,0.00023287,2]
[374559457,1753353065660,-550.96,0.00023287,2]
[374559458,1753353065670,-1060.41,0.00023287,2]
[374559459,1753353065680,-2774.82,0.00023287,2]
[374559460,1753353065690,-539.8547456,0.00023287,2]
[374559461,1753353065700,-2045.17,0.00023287,2]
[374559462,1753353065711,-1086.16,0.00023287,2]
[374559463,1753353065721,-1266.48,0.00023287,2]
[374559464,1753353065732,-1080.21,0.00023287,2]
[374559465,1753353065742,-460.0,0.00023287,2]
[374559466,1753353065752,-460.0,0.00023287,2]
[374559467,1753353065762,-151.0,0.000233,9]
[374559468,1753353065772,-1124.9,0.000233,2]
[374559469,1753353065782,-33926.90799181,0.000233,2]
[374559470,1753353066140,-1744.7597939,0.00019078,2]
[374559471,1753353066152,-7118.97055002,0.00019078,2]
[374559472,1753353066161,-500.0,0.00019174,2]
[374559473,1753353066172,-171.31013002,0.00019174,2]
[374559474,1753353066181,-243.29944952,0.00019174,2]
[374559475,1753353066191,-272.79349998,0.00019174,2]
[374559476,1753353066200,-500.0,0.00019174,2]
[374559477,1753353066209,-500.0,0.00019174,2]
[374559478,1753353066220,-611.82383478,0.00019174,2]
[374559479,1753353066229,-500.0,0.00019174,2]
[374559480,1753353066238,-500.0,0.00019174,2]
[374559481,1753353066248,-164.90297204,0.00019174,2]
[374559482,1753353066257,-500.0,0.00019174,2]
[374559483,1753353066267,-390.71035648,0.00019174,2]
[374559484,1753353066277,-500.0,0.00019174,2]
[374559485,1753353066286,-500.0,0.00019174,2]
[374559486,1753353066296,-500.0,0.00019174,2]
[374559487,1753353066305,-500.0,0.00019174,2]
[374559488,1753353066315,-500.0,0.00019174,2]
[374559489,1753353066325,-500.0,0.00019174,2]
[374559490,1753353066334,-500.0,0.00019174,2]
[374559491,1753353066344,-500.0,0.00019174,2]
[374559492,1753353066353,-500.0,0.00019174,2]
[374559493,1753353066363,-500.0,0.00019174,2]
[374559494,1753353066375,-500.0,0.00019174,2]
[374559495,1753353066387,-500.0,0.00019174,2]
[374559496,1753353066396,-500.0,0.00019174,2]
[374559497,1753353066406,-500.0,0.00019174,2]
[374559498,1753353066416,-500.0,0.00019174,2]
[374559499,1753353066425,-500.0,0.00019174,2]
[374559500,1753353066435,-500.0,0.00019174,2]
[374559501,1753353066445,-500.0,0.00019174,2]
[374559502,1753353066455,-500.0,0.00019174,2]
[374559503,1753353066464,-500.0,0.00019174,2]
[374559504,1753353066474,-500.0,0.00019174,2]
[374559505,1753353066484,-500.0,0.00019174,2]
[374559506,1753353066494,-500.0,0.00019174,2]
[374559507,1753353066504,-500.0,0.00019174,2]
[374559508,1753353066513,-617.25756199,0.00019174,2]
[374559509,1753353066523,-500.0,0.00019174,2]
[374559510,1753353066532,-500.0,0.00019174,2]
[374559511,1753353066542,-500.0,0.00019174,2]
[374559512,1753353066552,-500.0,0.00019174,2]
[374559513,1753353066562,-500.0,0.00019174,2]
[374559514,1753353066572,-500.0,0.00019174,2]
[374559515,1753353066582,-500.0,0.00019174,2]
[374559516,1753353066591,-500.0,0.00019174,2]
[374559517,1753353066601,-500.0,0.00019174,2]
[374559518,1753353066611,-172.47247477,0.00019174,2]
[374559519,1753353066620,-155.0,0.00019178,2]
[374559520,1753353066633,-460.0,0.00019452,2]
[374559521,1753353066643,-460.0,0.00019726,2]
[374559522,1753353066653,-497.87,0.0002,2]
[374559523,1753353066663,-460.0,0.0002,2]
[374559524,1753353066673,-497.87,0.00020273,2]
[374559525,1753353066683,-298.37455666,0.00020273,2]
[374559526,1753353066693,-448.30117395,0.00020447,2]
[374559527,1753353066704,-460.0,0.00023013,2]
[374559528,1753353066714,-569.13393687,0.00023287,2]
[374559529,1753353066723,-4044.0773333,0.000233,2]
[374559530,1753353066985,-499.29,0.00019178,2]
[374559531,1753353066996,-499.29,0.00019452,2]
[374559532,1753353067007,-499.29,0.00019726,2]
[374559533,1753353067017,-499.29,0.0002,2]
[374559534,1753353067027,-1974.18413872,0.00020636,2]
[374559535,1753353067041,-10650.62624928,0.00020636,2]
[374559536,1753353067053,-13215.92467489,0.000233,2]
[374559537,1753353067069,-521.64,0.00023334,6]
[374559538,1753353067079,-1538.92,0.000234,7]
[374559539,1753353067089,-1359.88,0.000234,7]
[374559540,1753353067099,-151.0,0.000234,7]
[374559541,1753353067109,-151.0,0.000234,7]
[374559542,1753353067119,-151.0,0.000234,7]
[374559543,1753353067130,-151.0,0.000234,7]
[374559544,1753353067140,-1755.56944437,0.00023417,9]
[374559545,1753353067150,-521.64,0.00023434,6]
[374559546,1753353067160,-1000.0,0.000235,2]
[374559547,1753353067170,-521.64,0.00023534,6]
[374559548,1753353067179,-218.7,0.00023544,6]
[374559549,1753353067189,-460.0,0.00023561,2]
[374559550,1753353067199,-1883.5,0.00023561,2]
[374559551,1753353067208,-524.25,0.00023561,2]
[374559552,1753353067219,-1956.02,0.00023561,2]
[374559553,1753353067229,-460.0,0.00023561,2]
[374559554,1753353067239,-460.0,0.00023561,2]
[374559555,1753353067249,-1300.47,0.00023561,2]
[374559556,1753353067259,-460.0,0.00023561,2]
[374559557,1753353067269,-198.66,0.00023561,2]
[374559558,1753353067278,-2933.9,0.00023561,2]
[374559559,1753353067288,-810.12,0.00023561,2]
[374559560,1753353067298,-985.46,0.00023561,2]
[374559561,1753353067307,-460.0,0.00023561,2]
[374559562,1753353067317,-470.59,0.00023561,2]
[374559563,1753353067327,-739.46,0.00023561,2]
[374559564,1753353067337,-583.09,0.00023561,2]
[374559565,1753353067347,-204.65519776,0.00023561,2]
[374559566,1753353067358,-249.24,0.00023561,2]
[374559567,1753353067368,-460.0,0.00023561,2]
[374559568,1753353067381,-1634.08,0.00023561,2]
[374559569,1753353067391,-460.0,0.00023561,2]
[374559570,1753353067402,-460.0,0.00023561,2]
[374559571,1753353067412,-1390.29,0.00023561,2]
[374559572,1753353067423,-460.0,0.00023561,2]
[374559573,1753353067433,-462.44,0.00023561,2]
[374559574,1753353067443,-550.96,0.00023561,2]
[374559575,1753353067453,-1060.41,0.00023561,2]
[374559576,1753353067464,-2774.82,0.00023561,2]
[374559577,1753353067475,-2045.17,0.00023561,2]
[374559578,1753353067485,-1086.16,0.00023561,2]
[374559579,1753353067495,-1266.48,0.00023561,2]
[374559580,1753353067506,-1080.21,0.00023561,2]
[374559581,1753353067516,-460.0,0.00023561,2]
[374559582,1753353067526,-168.0,0.00023602,2]
[374559583,1753353067537,-1755.56944437,0.00023624,9]
[374559584,1753353067546,-521.64,0.00023634,6]
[374559585,1753353067556,-168.0,0.00023652,2]
[374559586,1753353067572,-223.0315306,0.00023687,2]
[374559587,1753353067582,-151.0,0.000237,7]
[374559588,1753353067593,-151.0,0.000237,7]
[374559589,1753353067602,-151.0,0.000237,7]
[374559590,1753353067613,-151.0,0.000237,7]
[374559591,1753353067623,-151.0,0.000237,7]
[374559592,1753353067637,-521.64,0.00023734,2]
[374559593,1753353067647,-76933.33512946,0.0002379,2]
[374559594,1753353067658,-151.0,0.0002379,7]
[374559595,1753353067668,-151.0,0.0002379,7]
[374559596,1753353067678,-151.0,0.0002379,7]
[374559597,1753353067688,-226.455574,0.0002379,7]
[374559598,1753353067698,-226.455574,0.0002379,7]
[374559599,1753353067707,-151.0,0.0002379,7]
[374559600,1753353067717,-151.0,0.0002379,7]
[374559601,1753353067728,-179.334185,0.0002379,7]
[374559602,1753353067738,-179.334185,0.0002379,7]
[374559603,1753353067747,-168.0,0.00023808,2]
[374559604,1753353067758,-1755.56944437,0.00023831,10]
[374559605,1753353067767,-521.64,0.00023834,6]
[374559606,1753353067777,-460.0,0.00023835,2]
[374559607,1753353067786,-151.0,0.00023835,7]
[374559608,1753353067796,-151.0,0.00023835,7]
[374559609,1753353067806,-151.0,0.00023835,7]
[374559610,1753353067816,-151.0,0.00023835,7]
[374559611,1753353067825,-151.0,0.00023835,7]
[374559612,1753353067835,-151.0,0.00023835,7]
[374559613,1753353067845,-317.245903,0.00023835,7]
[374559614,1753353067855,-317.245903,0.00023835,7]
[374559615,1753353067865,-151.0,0.00023835,7]
[374559616,1753353067875,-1883.5,0.00023835,2]
[374559617,1753353067888,-524.25,0.00023835,2]
[374559618,1753353067900,-1956.02,0.00023835,2]
[374559619,1753353067910,-460.0,0.00023835,2]
[374559620,1753353067919,-460.0,0.00023835,2]
[374559621,1753353067929,-1300.47,0.00023835,2]
[374559622,1753353067939,-460.0,0.00023835,2]
[374559623,1753353067948,-2933.9,0.00023835,2]
[374559624,1753353067963,-810.12,0.00023835,2]
[374559625,1753353067973,-985.46,0.00023835,2]
[374559626,1753353067983,-201.88,0.00023835,2]
[374559627,1753353067993,-739.46,0.00023835,2]
[374559628,1753353068002,-583.09,0.00023835,2]
[374559629,1753353068012,-460.0,0.00023835,2]
[374559630,1753353068023,-1634.08,0.00023835,2]
[374559631,1753353068032,-517.31,0.00023835,2]
[374559632,1753353068042,-460.0,0.00023835,2]
[374559633,1753353068052,-1390.29,0.00023835,2]
[374559634,1753353068067,-460.0,0.00023835,2]
[374559635,1753353068077,-462.44,0.00023835,2]
[374559636,1753353068087,-550.96,0.00023835,2]
[374559637,1753353068098,-1060.41,0.00023835,2]
[374559638,1753353068108,-2774.82,0.00023835,2]
[374559639,1753353068118,-2045.17,0.00023835,2]
[374559640,1753353068129,-1086.16,0.00023835,2]
[374559641,1753353068140,-1266.48,0.00023835,2]
[374559642,1753353068150,-1080.21,0.00023835,2]
[374559643,1753353068160,-460.0,0.00023835,2]
[374559644,1753353068170,-218.7,0.00023883,6]
[374559645,1753353068180,-292.46907404,0.000239,2]
[374559646,1753353068190,-600.0,0.00023904,2]
[374559647,1753353068199,-521.64,0.00023934,7]
[374559648,1753353068210,-168.0,0.00023952,2]
[374559649,1753353068220,-159.139685,0.00023973,2]
[374559650,1753353068230,-151.0,0.00023973,7]
[374559651,1753353068240,-1040.57581829,0.0002398,2]
[374559652,1753353068250,-151.0,0.00024,7]
[374559653,1753353068259,-186.335054,0.00024,7]
[374559654,1753353068270,-1694.61051996,0.00024,2]
[374559655,1753353068280,-11635.04772202,0.00024,2]
[374559656,1753353068290,-10155.56740585,0.00024,2]
[374559657,1753353068300,-161.99864371,0.00024,2]
[374559658,1753353068310,-526.24749348,0.00024,7]
[374559659,1753353068320,-160.0,0.00024,7]
[374559660,1753353068330,-508.35189117,0.00024027,30]
[374559661,1753353068339,-521.64,0.00024034,5]
[374559662,1753353068349,-1755.56944437,0.00024038,10]
[374559663,1753353068359,-150.57438,0.00024076,2]
[374559664,1753353068369,-500.0,0.00024086,2]
[374559665,1753353068378,-460.0,0.00024109,2]
[374559666,1753353068388,-1883.5,0.00024109,2]
[374559667,1753353068398,-524.25,0.00024109,2]
[374559668,1753353068408,-1956.02,0.00024109,2]
[374559669,1753353068419,-460.0,0.00024109,2]
[374559670,1753353068429,-460.0,0.00024109,2]
[374559671,1753353068439,-1300.47,0.00024109,2]
[374559672,1753353068448,-460.0,0.00024109,2]
[374559673,1753353068458,-2933.9,0.00024109,2]
[374559674,1753353068468,-810.12,0.00024109,2]
[374559675,1753353068478,-985.46,0.00024109,2]
[374559676,1753353068488,-739.46,0.00024109,2]
[374559677,1753353068497,-583.09,0.00024109,2]
[374559678,1753353068508,-601.35923589,0.00024109,2]
[374559679,1753353068518,-1634.08,0.00024109,2]
[374559680,1753353068527,-460.0,0.00024109,2]
[374559681,1753353068537,-1390.29,0.00024109,2]
[374559682,1753353068547,-460.0,0.00024109,2]
[374559683,1753353068556,-462.44,0.00024109,2]
[374559684,1753353068566,-550.96,0.00024109,2]
[374559685,1753353068576,-1060.41,0.00024109,2]
[374559686,1753353068585,-2774.82,0.00024109,2]
[374559687,1753353068595,-2045.17,0.00024109,2]
[374559688,1753353068606,-1086.16,0.00024109,2]
[374559689,1753353068616,-1266.48,0.00024109,2]
[374559690,1753353068627,-1080.21,0.00024109,2]
[374559691,1753353068638,-460.0,0.00024109,2]
[374559692,1753353068649,-151.0,0.0002411,2]
[374559693,1753353068659,-735.0,0.0002411,2]
[374559694,1753353068669,-518.0,0.0002411,2]
[374559695,1753353068679,-240.50559132,0.0002411,2]
[374559696,1753353068690,-151.0,0.0002411,2]
[374559697,1753353068699,-151.0,0.0002411,2]
[374559698,1753353068709,-151.0,0.0002411,2]
[374559699,1753353068719,-151.0,0.0002411,2]
[374559700,1753353068729,-151.0,0.0002411,2]
[374559701,1753353068745,-151.0,0.0002411,2]
[374559702,1753353068765,-151.0,0.0002411,2]
[374559703,1753353068784,-151.0,0.0002411,2]
[374559704,1753353068794,-500.0,0.0002411,2]
[374559705,1753353068804,-151.0,0.0002411,2]
[374559706,1753353068813,-151.0,0.0002411,2]
[374559707,1753353068823,-151.0,0.0002411,2]
[374559708,1753353068833,-151.0,0.0002411,2]
[374559709,1753353068843,-151.0,0.0002411,2]
[374559710,1753353068854,-151.0,0.0002411,2]
[374559711,1753353068864,-151.0,0.0002411,2]
[374559712,1753353068873,-151.0,0.0002411,2]
[374559713,1753353068886,-500.0,0.0002411,2]
[374559714,1753353068896,-521.64,0.00024134,4]
[374559715,1753353068906,-500.0,0.00024171,2]
[374559716,1753353068916,-1171.89249327,0.000242,2]
[374559717,1753353068926,-4682.88240311,0.000242,2]
[374559718,1753353068935,-218.7,0.00024222,6]
[374559719,1753353068946,-808.50030667,0.00024233,2]
[374559720,1753353068956,-521.64,0.00024234,2]
[374559721,1753353068966,-1755.56944437,0.00024245,10]
[374559722,1753353068976,-168.0,0.00024258,2]
[374559723,1753353068986,-150.57438,0.00024281,9]
[374559724,1753353068998,-168.0,0.00024298,2]
[374559725,1753353069007,-658.728642,0.000243,7]
[374559726,1753353069017,-500.0,0.00024312,2]
[374559727,1753353069027,-150.57438,0.0002432,7]
[374559728,1753353069036,-521.64,0.00024334,7]
[374559729,1753353069046,-500.0,0.00024352,2]
[374559730,1753353069056,-482.18,0.00024383,2]
[374559731,1753353069070,-151.0,0.00024383,7]
[374559732,1753353069083,-151.0,0.00024383,7]
[374559733,1753353069094,-151.0,0.00024383,7]
[374559734,1753353069105,-151.0,0.00024383,7]
[374559735,1753353069114,-276.880526,0.00024383,7]
[374559736,1753353069124,-151.0,0.00024383,7]
[374559737,1753353069138,-317.245903,0.00024383,7]
[374559738,1753353069148,-317.245903,0.00024383,7]
[374559739,1753353069158,-151.0,0.00024383,7]
[374559740,1753353069167,-1883.5,0.00024383,2]
[374559741,1753353069177,-524.25,0.00024383,2]
[374559742,1753353069187,-1956.02,0.00024383,2]
[374559743,1753353069197,-460.0,0.00024383,2]
[374559744,1753353069207,-460.0,0.00024383,2]
[374559745,1753353069217,-1300.47,0.00024383,2]
[374559746,1753353069227,-460.0,0.00024383,2]
[374559747,1753353069236,-2933.9,0.00024383,2]
[374559748,1753353069246,-810.12,0.00024383,2]
[374559749,1753353069255,-985.46,0.00024383,2]
[374559750,1753353069265,-739.46,0.00024383,2]
[374559751,1753353069275,-583.09,0.00024383,2]
[374559752,1753353069284,-1634.08,0.00024383,2]
[374559753,1753353069293,-257.9,0.00024383,2]
[374559754,1753353069303,-1390.29,0.00024383,2]
[374559755,1753353069312,-460.0,0.00024383,2]
[374559756,1753353069321,-462.44,0.00024383,2]
[374559757,1753353069331,-550.96,0.00024383,2]
[374559758,1753353069341,-1060.41,0.00024383,2]
[374559759,1753353069351,-2774.82,0.00024383,2]
[374559760,1753353069360,-2045.17,0.00024383,2]
[374559761,1753353069370,-1086.16,0.00024383,2]
[374559762,1753353069380,-1080.21,0.00024383,2]
[374559763,1753353069389,-1266.48,0.00024383,2]
[374559764,1753353069399,-460.0,0.00024383,2]
[374559765,1753353069408,-151.0,0.00024384,2]
[374559766,1753353069418,-735.0,0.00024384,2]
[374559767,1753353069428,-518.0,0.00024384,2]
[374559768,1753353069437,-151.0,0.00024384,2]
[374559769,1753353069484,-151.0,0.00024384,2]
[374559770,1753353069494,-151.0,0.00024384,2]
[374559771,1753353069503,-151.55745423,0.00024384,2]
[374559772,1753353069513,-201.57800508,0.00024384,2]
[374559773,1753353069522,-151.0,0.00024384,2]
[374559774,1753353069531,-500.0,0.00024384,2]
[374559775,1753353069541,-151.60401182,0.00024384,2]
[374559776,1753353069550,-151.46998389,0.00024384,2]
[374559777,1753353069560,-151.0,0.00024384,2]
[374559778,1753353069569,-500.0,0.00024384,2]
[374559779,1753353069579,-151.3846295,0.00024384,2]
[374559780,1753353069588,-500.0,0.00024384,2]
[374559781,1753353069598,-151.0,0.00024384,2]
[374559782,1753353069607,-151.0,0.00024384,2]
[374559783,1753353069617,-151.0,0.00024384,2]
[374559784,1753353069626,-151.0,0.00024384,2]
[374559785,1753353069638,-151.0,0.00024384,2]
[374559786,1753353069647,-151.0,0.00024384,2]
[374559787,1753353069656,-2157.0,0.000244,2]
[374559788,1753353069666,-969.0,0.000244,2]
[374559789,1753353069676,-407.0,0.000244,2]
[374559790,1753353069686,-421.197,0.000244,2]
[374559791,1753353069696,-733.311,0.000244,2]
[374559792,1753353069706,-51186.91,0.000244,2]
[374559793,1753353069715,-252.035473,0.00024401,8]
[374559794,1753353069724,-521.64,0.00024434,4]
[374559795,1753353069734,-1755.56944437,0.00024452,11]
[374559796,1753353069743,-5615.58,0.0002449,10]
[374559797,1753353069753,-658.728642,0.000245,7]
[374559798,1753353069762,-151.0,0.000245,7]
[374559799,1753353069772,-151.0,0.000245,7]
[374559800,1753353069782,-151.0,0.000245,7]
[374559801,1753353069792,-151.0,0.000245,7]
[374559802,1753353069801,-151.0,0.000245,7]
[374559803,1753353069810,-151.0,0.000245,7]
[374559804,1753353069820,-317.245903,0.000245,7]
[374559805,1753353069829,-317.245897,0.000245,7]
[374559806,1753353069839,-1359.88,0.000245,7]
[374559807,1753353069848,-1538.92,0.000245,7]
[374559808,1753353069858,-151.0,0.000245,7]
[374559809,1753353069867,-150.57438,0.000245,9]
[374559810,1753353069877,-140148.30825037,0.000245,4]
[374559811,1753353069895,-1400.4781913,0.000245,4]
[374559812,1753353069907,-2600.25557855,0.000245,4]
[374559813,1753353069932,-499.29,0.00020273,2]
[374559814,1753353069941,-2459.50609546,0.000245,4]
[374559821,1753353734836,159.347156,0.00013699,2]
[374559823,1753353953130,-282.993199,0.00018464,2]
[374559824,1753353953154,-169.80669432,0.00019076,2]
[374559825,1753353953174,-169.80669431,0.00019076,2]
[374559826,1753353953194,-169.80669431,0.00019077,2]
[374559827,1753353953214,-169.80669431,0.00019078,2]
[374559828,1753353953234,-435.26927028,0.00019078,2]
[374559829,1753353953254,-169.80669431,0.00019078,2]
[374559830,1753353953273,-159.27923665,0.00019078,2]
[374559833,1753354028130,-851.46271425,0.00019078,2]
[374559834,1753354033627,10000.0,0.00026027,120]
[374559835,1753354042647,10000.0,0.00023,90]
[374559836,1753354043231,-2680.25740937,0.00019078,2]
[374559837,1753354046088,-777.80383186,0.00019078,2]
[374559838,1753354051056,10000.0,0.00023,60]
[374559839,1753354060927,10000.0,0.00023,30]
[374559840,1753354068477,10000.0,0.00023,60]
[374559841,1753354075364,10000.0,0.00023,90]
[374559842,1753354082889,10000.0,0.00026027,120]
[374559843,1753354104379,10000.0,0.00023,90]
[374559845,1753354111433,10000.0,0.00023,60]
[374559846,1753354136962,10000.0,0.00026027,120]
[374559847,1753354143754,10000.0,0.00023,90]
[374559848,1753354151685,10000.0,0.00023,60]
[374559878,1753354232722,-405.67184437,0.00019078,2]
[374559879,1753354232731,-50.37275231,0.00019078,2]
[374559880,1753354232741,-239.0,0.00019176,2]
[374559881,1753354232750,-300.0,0.00019176,2]
[374559882,1753354232759,-15.92382187,0.00019176,2]
[374559883,1753354232826,-284.07617813,0.00019176,2]
[374559885,1753354232835,-243.0,0.00019176,2]
[374559887,1753354232844,-376.74559517,0.00019177,2]
[374559889,1753354232853,-500.0,0.00019177,2]
[374559891,1753354232863,-407.21144134,0.00019177,2]
[374559894,1753354232872,-500.0,0.00019177,2]
[374559896,1753354232883,-179.69528467,0.00019177,2]
[374559898,1753354232892,-296.94138609,0.00019177,2]
[374559900,1753354232901,-280.93010601,0.00019177,2]
[374559901,1753354232910,-500.0,0.00019177,2]
[374559903,1753354232919,-500.0,0.00019177,2]
[374559904,1753354232929,-500.0,0.00019177,2]
[374559906,1753354232938,-421.04417443,0.00019177,2]
[374559948,1753354238562,-78.95582557,0.00019177,2]
[374559950,1753354238572,-483.83180553,0.00019177,2]
[374559956,1753354238616,-16.16819447,0.00019177,2]
[374559958,1753354238626,-613.25591134,0.00019177,2]
[374559960,1753354238637,-460.0,0.00019178,2]
[374559962,1753354238646,-460.0,0.00019178,2]
[374559963,1753354238655,-489.0,0.00019178,2]
[374559965,1753354238665,-471.11460237,0.00019178,2]
[374559967,1753354238675,-463.28007525,0.00019178,2]
[374559969,1753354238684,-460.0,0.00019178,2]
[374559971,1753354238693,-460.0,0.00019178,2]
[374559973,1753354238703,-460.0,0.00019178,2]
[374559975,1753354238712,-460.0,0.00019178,2]
[374559977,1753354238722,-460.0,0.00019178,2]
[374559979,1753354238731,-460.0,0.00019178,2]
[374559981,1753354238741,-460.0,0.00019178,2]
[374559983,1753354238750,-460.0,0.00019178,2]
[374559985,1753354238759,-460.0,0.00019178,2]
[374559987,1753354238770,-460.0,0.00019178,2]
[374559989,1753354238779,-460.0,0.00019178,2]
[374559991,1753354238789,-460.0,0.00019178,2]
[374559993,1753354238798,-460.0,0.00019178,2]
[374559995,1753354238808,-460.0,0.00019178,2]
[374559997,1753354238817,-460.0,0.00019178,2]
[374559999,1753354238826,-460.0,0.00019178,2]
[374560001,1753354238836,-460.0,0.00019178,2]